[Event "*** SCC Grand Prix: Titled Tuesday Blitz"]
[Site "Chess.com"]
[Date "2020.10.13"]
[Round "2"]
[White "WonderChampion"]
[Black "tlomigtlis"]
[Result "0-1"]
[WhiteElo "2024"]
[BlackElo "2634"]
[TimeControl "180+1"]
[EndTime "10:17:06 PDT"]
[Termination "tlomigtlis won by resignation"]

1. d4 {[%clk 0:03:00.9]} 1... d5 {[%clk 0:02:59.8]} 2. Nf3 {[%clk 0:03:00.2]}
2... Nf6 {[%clk 0:02:59.5]} 3. e3 {[%clk 0:02:58.2]} 3... c5 {[%clk 0:02:58]} 4.
dxc5 {[%clk 0:02:54]} 4... Nc6 {[%clk 0:02:56.2]} 5. c4 {[%clk 0:02:53.2]} 5...
e6 {[%clk 0:02:54.3]} 6. cxd5 {[%clk 0:02:52.3]} 6... exd5 {[%clk 0:02:55.2]} 7.
Nc3 {[%clk 0:02:49.3]} 7... Bxc5 {[%clk 0:02:54.8]} 8. Bb5 {[%clk 0:02:46.4]}
8... O-O {[%clk 0:02:54.3]} 9. O-O {[%clk 0:02:41.6]} 9... d4 {[%clk 0:02:54.1]}
10. exd4 {[%clk 0:02:35.3]} 10... Nxd4 {[%clk 0:02:55]} 11. Nxd4 {[%clk
0:02:34.8]} 11... Bxd4 {[%clk 0:02:55.9]} 12. Bd2 {[%clk 0:02:29.5]} 12... Bg4
{[%clk 0:02:54.9]} 13. Qc2 {[%clk 0:02:25.9]} 13... Qb6 {[%clk 0:02:54.4]} 14.
Bd3 {[%clk 0:02:22.1]} 14... Rac8 {[%clk 0:02:49.6]} 15. Rac1 {[%clk 0:02:17.7]}
15... Rfe8 {[%clk 0:02:40.8]} 16. h3 {[%clk 0:02:08.7]} 16... Bh5 {[%clk
0:02:37.1]} 17. Qb3 {[%clk 0:02:02.3]} 17... Rcd8 {[%clk 0:02:20]} 18. Bg5
{[%clk 0:01:53.8]} 18... h6 {[%clk 0:02:00.6]} 19. Bf4 {[%clk 0:01:43.3]} 19...
Qxb3 {[%clk 0:01:56.8]} 20. axb3 {[%clk 0:01:42.6]} 20... Bxf2+ {[%clk
0:01:57.3]} 21. Rxf2 {[%clk 0:01:31.8]} 21... Rxd3 {[%clk 0:01:58.2]} 22. Bxh6
{[%clk 0:01:22.3]} 22... gxh6 {[%clk 0:01:35.3]} 23. Rxf6 {[%clk 0:01:20.7]}
23... Rd2 {[%clk 0:01:35.8]} 24. Rf2 {[%clk 0:01:15.3]} 24... Red8 {[%clk
0:01:34.8]} 25. Ne4 {[%clk 0:01:11.3]} 25... Rxf2 {[%clk 0:01:32.7]} 26. Kxf2
{[%clk 0:01:10.2]} 26... Bg6 {[%clk 0:01:32.8]} 27. Nf6+ {[%clk 0:00:52]} 27...
Kg7 {[%clk 0:01:30.9]} 28. Ng4 {[%clk 0:00:52]} 28... Rd2+ {[%clk 0:01:30.8]}
29. Kg3 {[%clk 0:00:48]} 29... Rxb2 {[%clk 0:01:31.7]} 30. Rc3 {[%clk 0:00:48]}
30... Bc2 {[%clk 0:01:28.6]} 31. Rf3 {[%clk 0:00:41.7]} 31... Rxb3 {[%clk
0:01:27.6]} 32. Ne3 {[%clk 0:00:40.9]} 32... Be4 {[%clk 0:01:26]} 33. Nf5+
{[%clk 0:00:36.6]} 33... Bxf5 {[%clk 0:01:26.2]} 34. Rxb3 {[%clk 0:00:36.2]}
34... Be4 {[%clk 0:01:27]} 35. Ra3 {[%clk 0:00:35.3]} 35... a6 {[%clk 0:01:27]}
36. Rb3 {[%clk 0:00:34.4]} 36... Bd5 {[%clk 0:01:26.3]} 37. Rd3 {[%clk
0:00:33.5]} 37... Bc6 {[%clk 0:01:26.3]} 38. Kf2 {[%clk 0:00:31.2]} 38... a5
{[%clk 0:01:26]} 39. g4 {[%clk 0:00:30.9]} 39... a4 {[%clk 0:01:26.1]} 40. Ra3
{[%clk 0:00:30.6]} 40... b5 {[%clk 0:01:26]} 41. Ke3 {[%clk 0:00:30.5]} 41... b4
{[%clk 0:01:26]} 42. Ra1 {[%clk 0:00:31.4]} 42... a3 {[%clk 0:01:25.8]} 43. Kd3
{[%clk 0:00:31.3]} 43... Bd5 {[%clk 0:01:22.2]} 44. Kc2 {[%clk 0:00:26.6]} 44...
b3+ {[%clk 0:01:14.6]} 45. Kc3 {[%clk 0:00:26.1]} 45... b2 {[%clk 0:01:14]} 46.
Re1 {[%clk 0:00:24.3]} 46... Be4 {[%clk 0:01:10.6]} 47. Rxe4 {[%clk 0:00:12.3]}
47... b1=Q {[%clk 0:01:11.5]} 48. Re7 {[%clk 0:00:11.4]} 48... Qb2+ {[%clk
0:01:10.2]} 49. Kc4 {[%clk 0:00:11]} 49... a2 {[%clk 0:01:10.6]} 50. Ra7 {[%clk
0:00:10.2]} 50... Qc2+ {[%clk 0:01:10.9]} 51. Kd5 {[%clk 0:00:08.9]} 51... Qd3+
{[%clk 0:01:11.3]} 52. Kc5 {[%clk 0:00:08.5]} 52... Qe3+ {[%clk 0:01:11.4]} 0-1

[Event "*** SCC Grand Prix: Titled Tuesday Blitz"]
[Site "Chess.com"]
[Date "2020.10.13"]
[Round "2"]
[White "szefru"]
[Black "Ind1anStar"]
[Result "0-1"]
[WhiteElo "2230"]
[BlackElo "2452"]
[TimeControl "180+1"]
[EndTime "10:17:06 PDT"]
[Termination "Ind1anStar won by checkmate"]

1. c4 {[%clk 0:03:00.9]} 1... e6 {[%clk 0:02:59.8]} 2. Nc3 {[%clk 0:03:00.7]}
2... d5 {[%clk 0:03:00.4]} 3. cxd5 {[%clk 0:03:01]} 3... exd5 {[%clk 0:03:00.3]}
4. d4 {[%clk 0:03:01.4]} 4... Be7 {[%clk 0:02:58.5]} 5. Nf3 {[%clk 0:03:01.7]}
5... Nf6 {[%clk 0:02:58.6]} 6. Bf4 {[%clk 0:03:02]} 6... O-O {[%clk 0:02:55.8]}
7. e3 {[%clk 0:03:02.2]} 7... c6 {[%clk 0:02:54.9]} 8. Bd3 {[%clk 0:03:02.3]}
8... Nbd7 {[%clk 0:02:53.4]} 9. Ng5 {[%clk 0:03:02.1]} 9... Re8 {[%clk
0:02:43.5]} 10. Qc2 {[%clk 0:03:01.3]} 10... Nf8 {[%clk 0:02:43.5]} 11. O-O
{[%clk 0:02:59.8]} 11... h6 {[%clk 0:02:41]} 12. Nf3 {[%clk 0:02:58.2]} 12...
Bd6 {[%clk 0:02:38.8]} 13. Ne5 {[%clk 0:02:57.6]} 13... Be6 {[%clk 0:02:18]} 14.
Rac1 {[%clk 0:02:53.4]} 14... Rc8 {[%clk 0:02:17.7]} 15. a3 {[%clk 0:02:46.1]}
15... c5 {[%clk 0:02:15.7]} 16. Bb5 {[%clk 0:02:43.2]} 16... Re7 {[%clk
0:02:15.5]} 17. Qd2 {[%clk 0:02:35.6]} 17... a6 {[%clk 0:02:08.7]} 18. Bd3
{[%clk 0:02:33.4]} 18... c4 {[%clk 0:02:02.4]} 19. Bb1 {[%clk 0:02:31.8]} 19...
b5 {[%clk 0:02:02.3]} 20. f3 {[%clk 0:02:19.4]} 20... b4 {[%clk 0:01:58.5]} 21.
axb4 {[%clk 0:02:19]} 21... Bxb4 {[%clk 0:01:59.4]} 22. e4 {[%clk 0:02:18.9]}
22... N8d7 {[%clk 0:01:34.1]} 23. exd5 {[%clk 0:02:02.4]} 23... Nxd5 {[%clk
0:01:27.4]} 24. Rce1 {[%clk 0:01:48.1]} 24... Nxe5 {[%clk 0:00:45.2]} 25. Bxe5
{[%clk 0:01:36.6]} 25... Rd7 {[%clk 0:00:40.3]} 26. Qc2 {[%clk 0:01:27.6]} 26...
g6 {[%clk 0:00:34.8]} 27. Qd2 {[%clk 0:01:19.6]} 27... Kh7 {[%clk 0:00:30.6]}
28. Bg3 {[%clk 0:01:04]} 28... Ne7 {[%clk 0:00:23.6]} 29. Qc2 {[%clk 0:01:02.5]}
29... Bf5 {[%clk 0:00:20.4]} 30. Ne4 {[%clk 0:00:58.1]} 30... Rxd4 {[%clk
0:00:19.4]} 31. Re3 {[%clk 0:00:53.3]} 31... Bc5 {[%clk 0:00:16.7]} 32. Nxc5
{[%clk 0:00:50.9]} 32... Bxc2 {[%clk 0:00:16]} 33. Bxc2 {[%clk 0:00:49.6]} 33...
Rxc5 {[%clk 0:00:16]} 34. Rfe1 {[%clk 0:00:49.6]} 34... Nf5 {[%clk 0:00:11.7]}
35. Re8 {[%clk 0:00:48.4]} 35... Qg5 {[%clk 0:00:10.5]} 36. Be5 {[%clk
0:00:46.7]} 36... Rxe5 {[%clk 0:00:09.8]} 37. R1xe5 {[%clk 0:00:46.8]} 37... Rd2
{[%clk 0:00:09.9]} 38. Ba4 {[%clk 0:00:43.6]} 38... Qxg2# {[%clk 0:00:09.2]} 0-1

[Event "*** SCC Grand Prix: Titled Tuesday Blitz"]
[Site "Chess.com"]
[Date "2020.10.13"]
[Round "2"]
[White "dretch"]
[Black "FMJoseHerrera"]
[Result "1-0"]
[WhiteElo "2846"]
[BlackElo "2562"]
[TimeControl "180+1"]
[EndTime "10:17:14 PDT"]
[Termination "dretch won on time"]

1. d4 {[%clk 0:03:00.9]} 1... Nf6 {[%clk 0:02:59.6]} 2. c4 {[%clk 0:03:01.2]}
2... c5 {[%clk 0:02:58.8]} 3. d5 {[%clk 0:03:01.3]} 3... b5 {[%clk 0:02:58.7]}
4. cxb5 {[%clk 0:02:59.2]} 4... a6 {[%clk 0:02:58.6]} 5. bxa6 {[%clk 0:02:59.4]}
5... g6 {[%clk 0:02:58.5]} 6. Nc3 {[%clk 0:02:59.6]} 6... Bg7 {[%clk 0:02:58.9]}
7. e4 {[%clk 0:02:57.6]} 7... O-O {[%clk 0:02:58.8]} 8. Nf3 {[%clk 0:02:53.2]}
8... Qa5 {[%clk 0:02:58.4]} 9. Nd2 {[%clk 0:02:50.5]} 9... Bxa6 {[%clk
0:02:46.2]} 10. Be2 {[%clk 0:02:50.2]} 10... e6 {[%clk 0:02:32.4]} 11. O-O
{[%clk 0:02:45]} 11... Re8 {[%clk 0:02:26.5]} 12. Nc4 {[%clk 0:02:36.5]} 12...
Qc7 {[%clk 0:01:54.2]} 13. Bg5 {[%clk 0:02:07.2]} 13... Bxc4 {[%clk 0:00:42.8]}
14. Bxc4 {[%clk 0:02:05]} 14... Na6 {[%clk 0:00:42.7]} 15. d6 {[%clk 0:01:59.1]}
15... Qb6 {[%clk 0:00:39.2]} 16. e5 {[%clk 0:01:28.8]} 16... Nh5 {[%clk
0:00:36.4]} 17. Qe2 {[%clk 0:01:25]} 17... h6 {[%clk 0:00:17.3]} 18. Bd2 {[%clk
0:01:19]} 18... Nb4 {[%clk 0:00:15]} 19. g4 {[%clk 0:01:14]} 19... Nc2 {[%clk
0:00:14.9]} 20. gxh5 {[%clk 0:01:09.9]} 20... Nxa1 {[%clk 0:00:14.8]} 21. Rxa1
{[%clk 0:01:03.4]} 21... g5 {[%clk 0:00:12.4]} 22. b3 {[%clk 0:00:58]} 22... Rf8
{[%clk 0:00:11.3]} 23. f4 {[%clk 0:00:56.8]} 23... gxf4 {[%clk 0:00:10.7]} 24.
Bxf4 {[%clk 0:00:55.2]} 24... f6 {[%clk 0:00:11.6]} 25. exf6 {[%clk 0:00:54.3]}
25... Rxf6 {[%clk 0:00:11.4]} 26. Be5 {[%clk 0:00:53.7]} 26... Rf5 {[%clk
0:00:08.6]} 27. Bxg7 {[%clk 0:00:51.2]} 27... Kxg7 {[%clk 0:00:08.1]} 28. Ne4
{[%clk 0:00:49.8]} 28... Rg8 {[%clk 0:00:05.9]} 29. Ng3 {[%clk 0:00:43.3]} 29...
Kh8 {[%clk 0:00:04.8]} 30. Rd1 {[%clk 0:00:37.2]} 30... Rfg5 {[%clk 0:00:03.2]}
31. Qe3 {[%clk 0:00:34.5]} 31... Qc6 {[%clk 0:00:02.8]} 32. a4 {[%clk
0:00:24.5]} 32... Qa8 {[%clk 0:00:03.7]} 33. Rf1 {[%clk 0:00:20.7]} 33... Qe8
{[%clk 0:00:04.2]} 34. Be2 {[%clk 0:00:19.2]} 34... Qb8 {[%clk 0:00:02.9]} 35.
Rf6 {[%clk 0:00:17.7]} 1-0

[Event "*** SCC Grand Prix: Titled Tuesday Blitz"]
[Site "Chess.com"]
[Date "2020.10.13"]
[Round "2"]
[White "peixe64"]
[Black "GAusal"]
[Result "0-1"]
[WhiteElo "2355"]
[BlackElo "2025"]
[TimeControl "180+1"]
[EndTime "10:17:14 PDT"]
[Termination "GAusal won by checkmate"]

1. e4 {[%clk 0:03:00.9]} 1... e5 {[%clk 0:02:58.5]} 2. Nf3 {[%clk 0:03:00.9]}
2... Nc6 {[%clk 0:02:56.2]} 3. Bb5 {[%clk 0:03:01.1]} 3... a6 {[%clk 0:02:55]}
4. Ba4 {[%clk 0:03:01.3]} 4... Nf6 {[%clk 0:02:49.8]} 5. O-O {[%clk 0:03:00.7]}
5... Nxe4 {[%clk 0:02:44.7]} 6. d4 {[%clk 0:02:52.2]} 6... b5 {[%clk 0:02:44.5]}
7. Bb3 {[%clk 0:02:51.8]} 7... d5 {[%clk 0:02:40.6]} 8. dxe5 {[%clk 0:02:51.3]}
8... Be6 {[%clk 0:02:35]} 9. c3 {[%clk 0:02:49.7]} 9... Bc5 {[%clk 0:02:31.8]}
10. Nbd2 {[%clk 0:02:46.2]} 10... O-O {[%clk 0:02:28.3]} 11. Qe2 {[%clk
0:02:18.4]} 11... Bf5 {[%clk 0:02:21.7]} 12. Nxe4 {[%clk 0:02:04.5]} 12... dxe4
{[%clk 0:02:21]} 13. Nd2 {[%clk 0:01:50.9]} 13... Re8 {[%clk 0:02:12.8]} 14. Rd1
{[%clk 0:01:33.1]} 14... Qd3 {[%clk 0:01:59.8]} 15. Qe1 {[%clk 0:01:04.2]} 15...
Nxe5 {[%clk 0:01:54.7]} 16. Nf1 {[%clk 0:00:53.3]} 16... Nf3+ {[%clk 0:01:43.9]}
17. gxf3 {[%clk 0:00:52.8]} 17... Qxf3 {[%clk 0:01:42.4]} 18. Nd2 {[%clk
0:00:39.1]} 18... Qg4+ {[%clk 0:01:37.4]} 19. Kh1 {[%clk 0:00:39.6]} 19... Rad8
{[%clk 0:01:24.4]} 20. Qg1 {[%clk 0:00:35.6]} 20... Bxf2 {[%clk 0:01:21.8]} 21.
Qxf2 {[%clk 0:00:31]} 21... e3 {[%clk 0:01:20.2]} 22. Qg1 {[%clk 0:00:31.2]}
22... exd2 {[%clk 0:01:11.1]} 23. Qxg4 {[%clk 0:00:31.5]} 23... Re1+ {[%clk
0:01:06.5]} 24. Kg2 {[%clk 0:00:27.6]} 24... Bxg4 {[%clk 0:01:02.5]} 25. Rxd2
{[%clk 0:00:20.7]} 25... Rxd2+ {[%clk 0:00:55.7]} 26. Bxd2 {[%clk 0:00:20.9]}
26... Rxa1 {[%clk 0:00:52.2]} 27. Be3 {[%clk 0:00:21.2]} 27... Be6 {[%clk
0:00:49.8]} 28. Bc5 {[%clk 0:00:20.6]} 28... Bxb3 {[%clk 0:00:48.3]} 29. axb3
{[%clk 0:00:21.5]} 29... f5 {[%clk 0:00:45.3]} 30. Ba3 {[%clk 0:00:21.9]} 30...
g5 {[%clk 0:00:44.7]} 31. Kf3 {[%clk 0:00:22.4]} 31... Kf7 {[%clk 0:00:44.2]}
32. Kg3 {[%clk 0:00:23.3]} 32... h5 {[%clk 0:00:43.5]} 33. Kg2 {[%clk
0:00:23.8]} 33... Ke6 {[%clk 0:00:43]} 34. h4 {[%clk 0:00:23.4]} 34... g4 {[%clk
0:00:42.3]} 35. Kg3 {[%clk 0:00:23.7]} 35... Ke5 {[%clk 0:00:40.8]} 36. Bc5
{[%clk 0:00:24.2]} 36... f4+ {[%clk 0:00:40.6]} 37. Kf2 {[%clk 0:00:24.6]} 37...
Ke4 {[%clk 0:00:40.1]} 38. Bd4 {[%clk 0:00:25.5]} 38... Rb1 {[%clk 0:00:38]} 39.
Kg2 {[%clk 0:00:25.9]} 39... Rxb2+ {[%clk 0:00:37.8]} 40. Kf1 {[%clk 0:00:26.6]}
40... Rxb3 {[%clk 0:00:38.7]} 41. Ke2 {[%clk 0:00:26.7]} 41... c5 {[%clk
0:00:38.3]} 42. Bg7 {[%clk 0:00:26.2]} 42... a5 {[%clk 0:00:37.6]} 43. Kd2
{[%clk 0:00:26.6]} 43... Rb2+ {[%clk 0:00:37]} 44. Kc1 {[%clk 0:00:26.9]} 44...
Rh2 {[%clk 0:00:37.9]} 45. Kd1 {[%clk 0:00:27]} 45... f3 {[%clk 0:00:36.5]} 46.
Bf6 {[%clk 0:00:27.9]} 46... a4 {[%clk 0:00:36.7]} 47. Ke1 {[%clk 0:00:28.4]}
47... a3 {[%clk 0:00:36.8]} 48. c4 {[%clk 0:00:28.5]} 48... b4 {[%clk
0:00:37.2]} 49. Kd1 {[%clk 0:00:28.8]} 49... b3 {[%clk 0:00:37.3]} 50. Kc1
{[%clk 0:00:29.5]} 50... Kd3 {[%clk 0:00:37.4]} 51. Kb1 {[%clk 0:00:29.9]} 51...
Rh1# {[%clk 0:00:37.2]} 0-1

[Event "*** SCC Grand Prix: Titled Tuesday Blitz"]
[Site "Chess.com"]
[Date "2020.10.13"]
[Round "2"]
[White "SHIVACalypso"]
[Black "annacramling"]
[Result "1-0"]
[WhiteElo "2370"]
[BlackElo "1978"]
[TimeControl "180+1"]
[EndTime "10:17:15 PDT"]
[Termination "SHIVACalypso won by resignation"]

1. Nf3 {[%clk 0:03:00.9]} 1... c5 {[%clk 0:02:50.9]} 2. c4 {[%clk 0:02:54.7]}
2... Nc6 {[%clk 0:02:48.5]} 3. g3 {[%clk 0:02:53.7]} 3... e5 {[%clk 0:02:44.4]}
4. Nc3 {[%clk 0:02:52.6]} 4... d6 {[%clk 0:02:44.5]} 5. Bg2 {[%clk 0:02:52.3]}
5... g6 {[%clk 0:02:44.8]} 6. O-O {[%clk 0:02:52]} 6... Bg7 {[%clk 0:02:45.1]}
7. Ne1 {[%clk 0:02:52.5]} 7... Be6 {[%clk 0:02:40.4]} 8. Nd3 {[%clk 0:02:51.2]}
8... Bxc4 {[%clk 0:02:39.3]} 9. Ne1 {[%clk 0:02:47.3]} 9... Nge7 {[%clk
0:02:33.8]} 10. d3 {[%clk 0:02:46]} 10... Be6 {[%clk 0:02:32.9]} 11. e4 {[%clk
0:02:44.9]} 11... O-O {[%clk 0:02:32.3]} 12. f4 {[%clk 0:02:39.1]} 12... f5
{[%clk 0:02:26.4]} 13. Nc2 {[%clk 0:02:25.5]} 13... Nd4 {[%clk 0:02:25.5]} 14.
Ne3 {[%clk 0:02:21.8]} 14... exf4 {[%clk 0:02:22.5]} 15. gxf4 {[%clk 0:02:21]}
15... Rb8 {[%clk 0:02:17.4]} 16. Bd2 {[%clk 0:01:36.7]} 16... b5 {[%clk
0:02:17.2]} 17. Ncd5 {[%clk 0:01:24.2]} 17... Nec6 {[%clk 0:01:34.1]} 18. Rc1
{[%clk 0:01:21]} 18... b4 {[%clk 0:01:13.4]} 19. e5 {[%clk 0:01:03.2]} 19...
dxe5 {[%clk 0:01:08.1]} 20. Rxc5 {[%clk 0:01:02.7]} 20... exf4 {[%clk
0:01:02.5]} 21. Nxf4 {[%clk 0:01:02.2]} 21... Qb6 {[%clk 0:00:06.6]} 22. Nxe6
{[%clk 0:00:59.2]} 22... Nxe6 {[%clk 0:00:05.6]} 23. Rxc6 {[%clk 0:00:59.2]}
23... Qd4 {[%clk 0:00:04.5]} 24. Rxe6 {[%clk 0:00:58.6]} 24... Rfe8 {[%clk
0:00:04.6]} 25. Rxe8+ {[%clk 0:00:57.3]} 25... Rxe8 {[%clk 0:00:05.5]} 26. Qb3+
{[%clk 0:00:56.8]} 26... Kh8 {[%clk 0:00:05.3]} 27. Re1 {[%clk 0:00:54.4]} 27...
f4 {[%clk 0:00:05.4]} 28. Qc4 {[%clk 0:00:30.3]} 28... fxe3 {[%clk 0:00:03.9]}
29. Qxd4 {[%clk 0:00:28]} 29... Bxd4 {[%clk 0:00:03.8]} 30. Bxb4 {[%clk
0:00:26.7]} 30... e2+ {[%clk 0:00:04]} 31. Kh1 {[%clk 0:00:26.5]} 31... Kg7
{[%clk 0:00:03.8]} 32. Bf3 {[%clk 0:00:25.9]} 32... Bxb2 {[%clk 0:00:03.9]} 33.
Rxe2 {[%clk 0:00:25.8]} 33... Rf8 {[%clk 0:00:04.5]} 34. Kg2 {[%clk 0:00:25.2]}
34... Bd4 {[%clk 0:00:04.3]} 35. Be4 {[%clk 0:00:25.3]} 35... g5 {[%clk
0:00:02.9]} 36. Rc2 {[%clk 0:00:25.3]} 36... Kh6 {[%clk 0:00:02.5]} 37. Bxf8+
{[%clk 0:00:25]} 1-0

[Event "*** SCC Grand Prix: Titled Tuesday Blitz"]
[Site "Chess.com"]
[Date "2020.10.13"]
[Round "2"]
[White "Ginger_GM"]
[Black "BillieKimbah"]
[Result "0-1"]
[WhiteElo "2591"]
[BlackElo "2933"]
[TimeControl "180+1"]
[EndTime "10:17:16 PDT"]
[Termination "BillieKimbah won by resignation"]

1. e4 {[%clk 0:02:58.4]} 1... e5 {[%clk 0:02:56.8]} 2. f4 {[%clk 0:02:58.2]}
2... d5 {[%clk 0:02:54.7]} 3. exd5 {[%clk 0:02:57.9]} 3... exf4 {[%clk
0:02:54.4]} 4. Nf3 {[%clk 0:02:57.1]} 4... Nf6 {[%clk 0:02:54.1]} 5. Bc4 {[%clk
0:02:57.2]} 5... Nxd5 {[%clk 0:02:53.5]} 6. Nc3 {[%clk 0:02:57]} 6... Be6 {[%clk
0:02:49.2]} 7. Qe2 {[%clk 0:02:56.6]} 7... Be7 {[%clk 0:02:43.8]} 8. Nd4 {[%clk
0:02:53.8]} 8... Nxc3 {[%clk 0:02:40.1]} 9. dxc3 {[%clk 0:02:53.6]} 9... Bxc4
{[%clk 0:02:37]} 10. Qxc4 {[%clk 0:02:53.5]} 10... Bh4+ {[%clk 0:02:26.6]} 11.
g3 {[%clk 0:02:52.9]} 11... fxg3 {[%clk 0:02:26.6]} 12. hxg3 {[%clk 0:02:52.9]}
12... Bxg3+ {[%clk 0:02:26.1]} 13. Ke2 {[%clk 0:02:53.3]} 13... Be5 {[%clk
0:01:58.4]} 14. Qb5+ {[%clk 0:02:42.9]} 14... Nd7 {[%clk 0:01:57.8]} 15. Qxb7
{[%clk 0:02:23.4]} 15... O-O {[%clk 0:01:55]} 16. Qe4 {[%clk 0:02:17.6]} 16...
Nf6 {[%clk 0:01:54.1]} 17. Qh4 {[%clk 0:02:13.5]} 17... Re8 {[%clk 0:01:52.4]}
18. Be3 {[%clk 0:02:08.3]} 18... Bxd4 {[%clk 0:01:41.7]} 19. cxd4 {[%clk
0:02:07.9]} 19... Re4 {[%clk 0:01:39.6]} 20. Qg5 {[%clk 0:01:53]} 20... Qd5
{[%clk 0:01:32.9]} 21. Kd3 {[%clk 0:01:21.5]} 21... Qe6 {[%clk 0:00:56.2]} 22.
Rag1 {[%clk 0:01:13.6]} 22... Ng4 {[%clk 0:00:48.9]} 23. Kd2 {[%clk 0:00:43.9]}
23... h6 {[%clk 0:00:36.4]} 24. Rxh6 {[%clk 0:00:41]} 24... Qxh6 {[%clk
0:00:34.8]} 25. Qxh6 {[%clk 0:00:36.6]} 25... Nxh6 {[%clk 0:00:33.8]} 26. Bxh6
{[%clk 0:00:35.5]} 26... g6 {[%clk 0:00:30.2]} 27. Kd3 {[%clk 0:00:29.3]} 27...
Rae8 {[%clk 0:00:29.8]} 28. Bg5 {[%clk 0:00:28.1]} 28... f5 {[%clk 0:00:28.8]}
29. Bf6 {[%clk 0:00:27]} 29... Kf7 {[%clk 0:00:27.9]} 30. Be5 {[%clk 0:00:27.4]}
30... R4xe5 {[%clk 0:00:28]} 31. dxe5 {[%clk 0:00:27.3]} 31... Rxe5 {[%clk
0:00:28.9]} 32. Rh1 {[%clk 0:00:27.7]} 32... Kg7 {[%clk 0:00:28.6]} 33. c4
{[%clk 0:00:24.8]} 33... g5 {[%clk 0:00:28.6]} 34. b4 {[%clk 0:00:25.1]} 34...
g4 {[%clk 0:00:28.2]} 35. Rh5 {[%clk 0:00:22]} 35... Kg6 {[%clk 0:00:27.4]} 36.
Rh8 {[%clk 0:00:22.2]} 36... f4 {[%clk 0:00:25.4]} 37. Kd4 {[%clk 0:00:20.7]}
37... Re1 {[%clk 0:00:24.1]} 38. Rg8+ {[%clk 0:00:18.4]} 38... Kf5 {[%clk
0:00:23.8]} 39. Rf8+ {[%clk 0:00:18]} 39... Kg5 {[%clk 0:00:24]} 40. Rg8+ {[%clk
0:00:18.3]} 40... Kh4 {[%clk 0:00:24.1]} 41. b5 {[%clk 0:00:18.9]} 41... f3
{[%clk 0:00:23.9]} 42. Rf8 {[%clk 0:00:17.8]} 42... Kg3 {[%clk 0:00:23.3]} 43.
c5 {[%clk 0:00:18.2]} 43... f2 {[%clk 0:00:23.4]} 0-1

[Event "*** SCC Grand Prix: Titled Tuesday Blitz"]
[Site "Chess.com"]
[Date "2020.10.13"]
[Round "2"]
[White "Roza_Idrisova"]
[Black "korkmaz16"]
[Result "1-0"]
[WhiteElo "2170"]
[BlackElo "2391"]
[TimeControl "180+1"]
[EndTime "10:17:16 PDT"]
[Termination "Roza_Idrisova won by resignation"]

1. d4 {[%clk 0:03:00.9]} 1... d5 {[%clk 0:02:17.1]} 2. Nf3 {[%clk 0:03:00.2]}
2... Nf6 {[%clk 0:02:11.3]} 3. Bg5 {[%clk 0:02:59.9]} 3... Ne4 {[%clk
0:02:05.6]} 4. Bf4 {[%clk 0:02:59.4]} 4... c5 {[%clk 0:02:05.2]} 5. c3 {[%clk
0:02:59]} 5... Nc6 {[%clk 0:01:58.4]} 6. e3 {[%clk 0:02:58.6]} 6... Qb6 {[%clk
0:01:58.3]} 7. Qb3 {[%clk 0:02:58]} 7... c4 {[%clk 0:01:52.4]} 8. Qxb6 {[%clk
0:02:57.7]} 8... axb6 {[%clk 0:01:53.3]} 9. Nbd2 {[%clk 0:02:57.9]} 9... Bf5
{[%clk 0:01:52.5]} 10. Be2 {[%clk 0:02:54.6]} 10... h6 {[%clk 0:01:41.5]} 11.
Nxe4 {[%clk 0:02:51.7]} 11... Bxe4 {[%clk 0:01:41.2]} 12. O-O {[%clk 0:02:51.6]}
12... e6 {[%clk 0:01:41.1]} 13. Nd2 {[%clk 0:02:51.1]} 13... Bh7 {[%clk
0:01:40.6]} 14. e4 {[%clk 0:02:47.5]} 14... Be7 {[%clk 0:01:18.1]} 15. exd5
{[%clk 0:02:44.7]} 15... exd5 {[%clk 0:01:18]} 16. Bf3 {[%clk 0:02:44.7]} 16...
Rd8 {[%clk 0:01:18]} 17. Rfe1 {[%clk 0:02:43.7]} 17... Rd7 {[%clk 0:01:17.2]}
18. h3 {[%clk 0:02:39]} 18... O-O {[%clk 0:01:16.5]} 19. Bg4 {[%clk 0:02:27.4]}
19... f5 {[%clk 0:01:03.7]} 20. Bf3 {[%clk 0:02:26]} 20... Ra8 {[%clk
0:01:00.6]} 21. a3 {[%clk 0:02:25.1]} 21... Kf7 {[%clk 0:01:00.2]} 22. Rac1
{[%clk 0:02:11.5]} 22... g5 {[%clk 0:00:59.1]} 23. Bh2 {[%clk 0:02:10.5]} 23...
f4 {[%clk 0:00:59.1]} 24. g3 {[%clk 0:02:07]} 24... Bd6 {[%clk 0:00:59]} 25.
gxf4 {[%clk 0:02:06.7]} 25... Bxf4 {[%clk 0:00:58.2]} 26. Bxf4 {[%clk
0:02:03.3]} 26... gxf4 {[%clk 0:00:59.1]} 27. Kh2 {[%clk 0:02:01.9]} 27... Kf6
{[%clk 0:00:51.8]} 28. Bg4 {[%clk 0:01:56.8]} 28... Re7 {[%clk 0:00:50.5]} 29.
Bf3 {[%clk 0:01:47.2]} 29... Rd8 {[%clk 0:00:50]} 30. Rxe7 {[%clk 0:01:38.2]}
30... Nxe7 {[%clk 0:00:49.7]} 31. Re1 {[%clk 0:01:36.2]} 31... Ng6 {[%clk
0:00:45.5]} 32. Bh5 {[%clk 0:01:32.5]} 32... Nh4 {[%clk 0:00:45.1]} 33. Nf3
{[%clk 0:01:22.2]} 33... Nxf3+ {[%clk 0:00:44.7]} 34. Bxf3 {[%clk 0:01:21.9]}
34... Bf5 {[%clk 0:00:44.4]} 35. Re5 {[%clk 0:01:18.5]} 35... Be6 {[%clk
0:00:44.3]} 36. Rh5 {[%clk 0:01:11.1]} 36... Kg6 {[%clk 0:00:44.3]} 37. Re5
{[%clk 0:01:10.2]} 37... Kf6 {[%clk 0:00:44.6]} 38. h4 {[%clk 0:01:01.1]} 38...
Rd7 {[%clk 0:00:33.6]} 39. Rxe6+ {[%clk 0:00:37]} 39... Kxe6 {[%clk 0:00:32.9]}
40. Bg4+ {[%clk 0:00:37.1]} 40... Kd6 {[%clk 0:00:33.2]} 41. Bxd7 {[%clk
0:00:37]} 41... Kxd7 {[%clk 0:00:34.1]} 42. Kh3 {[%clk 0:00:37.3]} 42... h5
{[%clk 0:00:34.5]} 43. Kg2 {[%clk 0:00:36.9]} 43... Ke6 {[%clk 0:00:34.9]} 44.
Kf3 {[%clk 0:00:36.6]} 44... Kf5 {[%clk 0:00:32.5]} 45. a4 {[%clk 0:00:36.6]}
45... b5 {[%clk 0:00:33]} 46. a5 {[%clk 0:00:35.2]} 46... Ke6 {[%clk 0:00:29.7]}
47. Kxf4 {[%clk 0:00:35]} 47... Kf6 {[%clk 0:00:30.2]} 48. f3 {[%clk 0:00:34.7]}
48... b4 {[%clk 0:00:23.9]} 49. cxb4 {[%clk 0:00:34.2]} 49... c3 {[%clk
0:00:24.8]} 50. bxc3 {[%clk 0:00:34]} 1-0